bitfinex/quotes_BTCUSD_20260315
["timestamp","ask_amount","ask_price","bid_price","bid_amount"]
[1773574233880,0.0014,71709.0,71697.0,0.06973792]
[1773574234281,0.06972722,71708.0,71697.0,0.06973792]
[1773574234480,0.0014,71707.0,71697.0,0.06973792]
[1773574234886,0.06972722,71708.0,71697.0,0.06973792]
[1773574235082,0.0014,71707.0,71697.0,0.06973792]
[1773574236180,0.06972917,71706.0,71697.0,0.06973792]
[1773574236607,0.06972917,71706.0,71698.0,0.03060976]
[1773574238387,0.06972431,71711.0,71698.0,0.03060976]
[1773574238587,0.0014,71710.0,71698.0,0.03060976]
[1773574238977,0.0014,71709.0,71698.0,0.03060976]
[1773574239178,0.0014,71709.0,71698.0,0.10034628]
[1773574239503,0.0014,71708.0,71698.0,0.10034628]
[1773574239704,0.06972431,71711.0,71697.0,0.06993792]
[1773574239908,0.0014,71708.0,71697.0,0.06993792]
[1773574240106,0.0014,71708.0,71697.0,0.10053358]
[1773574240425,0.0014,71707.0,71697.0,0.10053358]
[1773574240732,0.06972431,71711.0,71697.0,0.06993792]
[1773574240910,0.0014,71708.0,71698.0,0.03059566]
[1773574241701,0.06972431,71711.0,71698.0,0.03059566]
[1773574241907,0.0014,71708.0,71698.0,0.03059566]
[1773574242708,0.06972431,71711.0,71698.0,0.03059566]
[1773574243049,0.0014,71708.0,71698.0,0.03059566]
[1773574243212,0.06972431,71711.0,71698.0,0.21170795]
[1773574243544,0.0014,71710.0,71696.0,5.8e-07]
[1773574244108,0.06972431,71711.0,71696.0,5.8e-07]
[1773574244369,0.0014,71709.0,71696.0,5.8e-07]
[1773574245202,0.06972722,71708.0,71696.0,5.8e-07]
[1773574248053,0.06994723,71708.0,71696.0,5.8e-07]
[1773574249168,0.06994723,71708.0,71697.0,0.0313315]
[1773574249169,0.07134723,71708.0,71697.0,0.0313315]
[1773574249531,0.06994723,71708.0,71697.0,0.0313315]
[1773574249773,0.06972917,71706.0,71699.0,0.03131525]
[1773574250146,0.06972876,71707.0,71699.0,0.03131525]
[1773574250353,0.06972917,71706.0,71699.0,0.03131525]
[1773574251349,0.00022001,71708.0,71699.0,0.03131525]
[1773574251551,0.06972819,71707.0,71699.0,0.03131525]
[1773574251938,0.03709489,71707.0,71700.0,0.03174129]
[1773574254387,0.0699477,71708.0,71701.0,0.03174129]
[1773574256042,0.0699477,71708.0,71696.0,0.0697394]
[1773574256199,0.0699477,71708.0,71697.0,0.03174129]
[1773574256992,0.00022001,71707.0,71697.0,0.03174129]
[1773574260221,0.06994891,71707.0,71698.0,0.06973695]
[1773574260397,0.06994891,71707.0,71699.0,0.03174129]
[1773574262649,0.06994891,71707.0,71700.0,0.10147629]
[1773574263777,0.00022001,71708.0,71700.0,0.10147629]
[1773574264163,0.06994767,71708.0,71699.0,0.03174129]
[1773574266623,0.06994767,71708.0,71699.0,0.10167691]
[1773574267559,0.06994767,71708.0,71699.0,0.0002]
[1773574269709,0.06994767,71708.0,71699.0,0.06993574]
[1773574273450,0.0014,71707.0,71699.0,0.06993574]
[1773574273949,0.06994767,71708.0,71700.0,0.03174129]
[1773574274553,0.0014,71714.0,71700.0,0.03174129]
[1773574274753,0.06999139,71716.0,71702.0,0.03174129]
[1773574274754,0.06977061,71715.0,71702.0,0.03174129]
[1773574275254,5e-05,71715.0,71702.0,0.03174129]
[1773574275461,0.00027001,71716.0,71704.0,0.03174129]
[1773574275927,0.00022001,71708.0,71704.0,0.03174129]
[1773574276340,0.00027001,71716.0,71704.0,0.03174129]
[1773574276896,0.06971706,71719.0,71704.0,0.03174129]
[1773574277102,0.0014,71718.0,71704.0,0.03174129]
[1773574277333,0.06971706,71719.0,71705.0,0.06973014]
[1773574277575,0.0014,71718.0,71706.0,0.03174129]
[1773574277869,0.00034822,71720.0,71706.0,0.03174129]
[1773574278045,0.07146383,71720.0,71706.0,0.03174129]
[1773574278456,0.07006383,71720.0,71706.0,0.03174129]
[1773574278679,0.07146383,71720.0,71706.0,0.03174129]
[1773574278851,0.07006383,71720.0,71706.0,0.03174129]
[1773574279464,0.07006383,71720.0,71707.0,0.06972819]
[1773574279676,0.07006383,71720.0,71707.0,0.10146948]
[1773574282157,0.07006383,71720.0,71707.0,0.06972819]
[1773574282338,0.07006383,71720.0,71708.0,0.0292803]
[1773574283204,0.0014,71719.0,71708.0,0.0292803]
[1773574285213,0.07111556,71721.0,71710.0,0.0292803]
[1773574287919,0.07111556,71721.0,71712.0,0.0292803]
[1773574290687,0.00022001,71723.0,71713.0,0.0292803]
[1773574290835,0.069933,71723.0,71713.0,0.0292803]
[1773574292086,0.00022001,71721.0,71713.0,0.0292803]
[1773574293635,0.00022001,71721.0,71714.0,0.06972139]
[1773574295481,0.00022001,71721.0,71715.0,0.0292803]
[1773574297404,0.00022001,71721.0,71715.0,0.09900004]
[1773574301766,0.0014,71722.0,71712.0,0.06972139]
[1773574301966,0.0001675,71726.0,71713.0,0.0292803]
[1773574302174,0.0014,71725.0,71713.0,0.0292803]
[1773574304313,0.0014,71725.0,71714.0,0.06972139]
[1773574308868,0.00162001,71725.0,71714.0,0.06972139]
[1773574311999,0.00162001,71725.0,71715.0,0.02863533]
[1773574318022,0.00162001,71725.0,71716.0,0.06971944]
[1773574335410,0.00162001,71725.0,71716.0,0.06991944]
[1773574335615,0.0016649,71725.0,71716.0,0.06991944]
[1773574353477,0.0001675,71726.0,71716.0,0.06991944]
[1773574353684,0.0001675,71726.0,71717.0,0.02770683]
[1773574353882,0.07110592,71730.0,71716.0,0.06996433]
[1773574353883,0.06991618,71740.0,71718.0,0.0014]
[1773574354085,0.06991618,71740.0,71718.0,0.02910683]
[1773574354086,0.0699234,71733.0,71718.0,0.02910683]
[1773574354319,0.00022001,71733.0,71718.0,0.02910683]
[1773574356234,0.00022001,71733.0,71719.0,0.06971653]
[1773574358030,0.00022001,71733.0,71719.0,0.09742336]
[1773574361056,0.02745426,71732.0,71719.0,0.06971653]
[1773574363661,0.06970486,71731.0,71719.0,0.06971653]
[1773574368233,0.06992487,71731.0,71719.0,0.06971653]
[1773574373623,0.02743661,71730.0,71719.0,0.06971653]
[1773574376787,0.06970681,71729.0,71719.0,0.06991653]
[1773574379408,0.06992549,71731.0,71719.0,0.06991653]
[1773574379590,0.0014,71730.0,71719.0,0.09659224]
[1773574381067,0.06992549,71731.0,71719.0,0.09659224]
[1773574384015,0.06992549,71731.0,71719.0,0.06991653]
[1773574392262,0.02743661,71730.0,71716.0,0.06996389]
[1773574393055,0.06970681,71729.0,71716.0,0.06996389]
[1773574393700,0.06970681,71729.0,71719.0,0.0002]
[1773574394205,0.09714342,71729.0,71719.0,0.0002]
[1773574397190,0.02743661,71728.0,71716.0,0.06996404]
[1773574397365,0.06970875,71727.0,71716.0,0.06996404]
[1773574397565,0.0014,71726.0,71716.0,0.06996404]
[1773574399500,0.06970681,71729.0,71716.0,0.06996404]
[1773574399711,0.0014,71725.0,71716.0,0.06996404]
[1773574401236,0.06970681,71729.0,71716.0,0.06996404]
[1773574401408,0.0014,71728.0,71719.0,0.0002]
[1773574401817,0.06970875,71727.0,71719.0,0.0699157]
[1773574402446,0.0014,71727.0,71719.0,0.0699157]
[1773574402641,0.06970795,71728.0,71720.0,0.02547109]
[1773574402858,0.07110795,71728.0,71720.0,0.02547109]
[1773574403263,0.0014,71729.0,71720.0,0.02547109]
[1773574404069,0.06970671,71730.0,71721.0,0.06971458]
[1773574404276,0.0014,71729.0,71721.0,0.06971458]
[1773574404658,0.07110671,71730.0,71721.0,0.06971458]
[1773574405331,0.06970671,71730.0,71721.0,0.06971458]
[1773574406461,0.07110671,71730.0,71721.0,0.06971458]
[1773574406660,0.0014,71730.0,71721.0,0.06971458]
[1773574406875,0.00022001,71731.0,71721.0,0.06971458]
[1773574407086,0.0014,71730.0,71721.0,0.06971458]
[1773574407849,0.00022001,71731.0,71721.0,0.06971458]
[1773574408328,0.00022001,71731.0,71722.0,0.02547109]
[1773574408831,0.00022001,71731.0,71723.0,0.06971264]
[1773574409389,0.06970394,71732.0,71724.0,0.02547109]
[1773574409592,0.06970394,71732.0,71723.0,0.06971264]
[1773574410331,0.00022001,71731.0,71723.0,0.06971264]
[1773574410890,0.00022001,71731.0,71722.0,0.06971264]
[1773574424218,0.00022001,71731.0,71722.0,0.06991264]
[1773574433579,4.054e-05,71731.0,71722.0,0.06991264]
[1773574434000,0.0693856,71732.0,71722.0,0.06991264]
[1773574436560,0.00022001,71733.0,71722.0,0.06991264]
[1773574437832,0.00022001,71732.0,71722.0,0.06991264]
[1773574442520,0.02504199,71732.0,71722.0,0.06991264]
[1773574443117,0.02482198,71731.0,71719.0,0.0002]
[1773574443303,0.02482198,71731.0,71718.0,0.06984588]
[1773574445263,0.02482198,71729.0,71718.0,0.06971704]
[1773574445483,0.02622198,71728.0,71718.0,0.06971704]
[1773574445778,0.02622198,71728.0,71722.0,0.0002]
[1773574447108,0.02622198,71728.0,71718.0,0.0698459]
[1773574447306,0.02482198,71726.0,71718.0,0.03985182]
[1773574449073,0.02482198,71726.0,71715.0,0.06971974]
[1773574449281,0.02482198,71726.0,71711.0,0.06992417]
[1773574449282,0.02482198,71723.0,71711.0,0.06992417]
[1773574450159,0.0014,71722.0,71711.0,0.06992417]
[1773574450476,0.02482198,71721.0,71711.0,0.06992417]
[1773574451251,0.09453754,71720.0,71711.0,0.06992417]
[1773574452440,0.02482198,71719.0,71711.0,0.0002]
[1773574452643,0.02482198,71719.0,71709.0,0.06985427]
[1773574453499,0.09453909,71719.0,71711.0,0.06992388]
[1773574460723,0.09453909,71719.0,71709.0,0.06985444]
[1773574460938,0.09453909,71719.0,71709.0,0.0001282]
[1773574460939,0.02482198,71718.0,71709.0,0.0001282]
[1773574461260,0.02482198,71716.0,71709.0,0.0697259]
[1773574461417,0.02622198,71716.0,71709.0,0.03982713]
[1773574461838,0.0014,71716.0,71709.0,0.03982713]
[1773574466895,0.0014,71716.0,71709.0,0.04002713]
[1773574469432,0.00145483,71716.0,71709.0,0.04002713]
[1773574473039,0.07117468,71716.0,71708.0,0.04992672]
[1773574475373,0.07117468,71716.0,71706.0,0.02018539]
[1773574475559,0.07117468,71716.0,71709.0,0.0002]
[1773574476330,0.07117468,71716.0,71709.0,0.06992532]
[1773574484302,0.07117468,71716.0,71709.0,0.0002]
[1773574489129,0.07139469,71716.0,71709.0,0.0002]
[1773574505850,0.21044919,71716.0,71709.0,0.0002]
[1773574506057,0.07139469,71716.0,71709.0,0.0002]
[1773574506292,0.07139469,71716.0,71705.0,8.688e-05]
[1773574506293,0.21043625,71716.0,71705.0,8.688e-05]
[1773574506485,0.07139469,71716.0,71705.0,8.688e-05]
[1773574506685,0.09317987,71716.0,71705.0,8.688e-05]
[1773574507214,0.23221626,71716.0,71705.0,8.688e-05]
[1773574507876,0.21043108,71716.0,71705.0,8.688e-05]
[1773574508076,0.21143108,71716.0,71705.0,8.688e-05]
[1773574508503,0.21043108,71716.0,71705.0,8.688e-05]
[1773574509357,0.0014,71715.0,71706.0,0.02172274]
[1773574510354,0.20903108,71716.0,71706.0,0.02172274]
[1773574510562,0.13903639,71715.0,71706.0,0.02172274]
[1773574510745,0.0014,71715.0,71706.0,0.02172274]
[1773574511162,0.0014,71715.0,71707.0,0.02172274]
[1773574513389,0.0014,71715.0,71706.0,0.06972841]
[1773574513390,0.06972139,71714.0,71705.0,8.688e-05]
[1773574515169,0.20866936,71714.0,71705.0,8.688e-05]
[1773574515367,0.06972139,71714.0,71705.0,8.688e-05]
[1773574516056,0.20866207,71714.0,71705.0,8.688e-05]
[1773574517186,0.23065467,71714.0,71705.0,8.688e-05]
[1773574517593,0.20966207,71714.0,71705.0,8.688e-05]
[1773574517898,0.20866207,71714.0,71705.0,8.688e-05]
[1773574521181,0.20866207,71714.0,71701.0,0.0002]
[1773574521182,0.20866207,71714.0,71694.0,0.0002]
[1773574521183,0.0206102,71713.0,71694.0,0.0002]
[1773574521605,0.0206102,71713.0,71695.0,0.0003282]
[1773574523199,0.06972333,71712.0,71695.0,0.0003282]
[1773574523417,0.02036552,71711.0,71695.0,0.0003282]
[1773574526045,0.02011879,71709.0,71695.0,0.0003282]
[1773574527365,0.0014,71708.0,71695.0,0.0003282]
[1773574527970,0.06972819,71707.0,71695.0,0.0003282]
[1773574528149,0.06972819,71707.0,71697.0,0.02054797]
[1773574528351,0.0014,71706.0,71697.0,0.02054797]
[1773574528552,0.0014,71705.0,71697.0,0.02054797]
[1773574530973,0.0014,71705.0,71699.0,0.02054797]
[1773574531343,0.06972923,71706.0,71699.0,0.02054797]
[1773574531344,0.0014,71706.0,71699.0,0.02054797]
[1773574531541,0.0014,71706.0,71698.0,0.06973695]
[1773574532073,0.0014,71707.0,71698.0,0.06973695]
[1773574533140,0.0014,71708.0,71698.0,0.06973695]
[1773574535241,0.04972819,71707.0,71698.0,0.06973695]
[1773574539199,0.04972819,71707.0,71698.0,0.06993695]
[1773574542622,0.06972248,71713.0,71698.0,0.06993695]
[1773574542801,0.0014,71710.0,71698.0,0.06993695]
[1773574543600,0.20855851,71713.0,71698.0,0.06993695]
[1773574543799,0.14023603,71712.0,71698.0,0.06993695]
[1773574544127,0.06972431,71711.0,71698.0,0.06993695]
[1773574547193,0.20860131,71711.0,71698.0,0.06993695]
[1773574548049,0.02160525,71710.0,71698.0,0.06993695]
[1773574548250,0.02160525,71710.0,71689.0,0.06994563]
[1773574548251,0.02160525,71710.0,71671.0,0.06266297]
[1773574548252,0.05407199,71698.0,71671.0,0.06266297]
[1773574548428,0.20854921,71709.0,71671.0,0.06266297]
[1773574548429,0.0014,71697.0,71673.0,0.0090053]
[1773574548612,0.0014,71696.0,71673.0,0.0090053]
[1773574549455,0.02036552,71699.0,71673.0,0.0100053]
[1773574549661,0.02036552,71699.0,71671.0,0.02494869]
[1773574549811,0.06972625,71709.0,71674.0,0.0014]
[1773574549812,0.05000862,71697.0,71674.0,0.0014]
[1773574550019,0.0014,71696.0,71674.0,0.0014]
[1773574550234,0.06973987,71695.0,71675.0,0.06975933]
[1773574550457,0.20856283,71695.0,71675.0,0.06975933]
[1773574550656,0.13882296,71694.0,71675.0,0.06975933]
[1773574550855,0.20856283,71695.0,71675.0,0.06975933]
[1773574551782,0.20856283,71695.0,71675.0,0.06980423]
[1773574552206,0.06973987,71695.0,71675.0,0.06980423]
[1773574553473,0.12879359,71695.0,71675.0,0.06980423]
[1773574553822,0.12879359,71695.0,71675.0,0.07000423]
[1773574560200,0.06974181,71693.0,71675.0,0.07000423]
[1773574560927,0.11104454,71706.0,71675.0,0.07000423]
[1773574560928,0.06973883,71697.0,71675.0,0.07000423]
[1773574561127,0.06973763,71698.0,71675.0,0.07014203]
[1773574561307,0.06973403,71701.0,71675.0,0.07014203]
[1773574562225,0.0697336,71702.0,71675.0,0.07014203]
[1773574569648,0.07113403,71703.0,71675.0,0.07014203]
[1773574570927,0.12524259,71703.0,71675.0,0.07014203]
[1773574571312,0.12524259,71703.0,71675.0,0.07114203]
[1773574571512,0.05395464,71702.0,71675.0,0.07014203]
[1773574571890,0.05395464,71702.0,71675.0,0.07114203]
[1773574572594,0.05395464,71702.0,71675.0,0.07014203]
[1773574572809,0.05395464,71702.0,71675.0,0.07114203]
[1773574573206,0.05395464,71702.0,71675.0,0.07014203]
[1773574573758,0.06973403,71701.0,71675.0,0.07014203]
[1773574574325,0.12358708,71701.0,71675.0,0.07014203]
[1773574575025,0.12358708,71701.0,71675.0,0.07114203]
[1773574577136,0.06973403,71701.0,71675.0,0.07114203]
[1773574577848,0.06973403,71701.0,71675.0,0.07014203]
[1773574578051,0.0699535,71702.0,71676.0,0.53737]
[1773574578052,0.00022001,71702.0,71676.0,0.53737]
[1773574578518,0.00022001,71702.0,71677.0,1.170591]
[1773574578905,0.06995325,71702.0,71677.0,1.170591]
[1773574579427,0.06995325,71702.0,71677.0,0.0001378]
[1773574580560,0.00022001,71702.0,71677.0,0.0001378]
[1773574580786,0.00022001,71702.0,71677.0,0.0011378]
[1773574581084,0.00022001,71702.0,71678.0,1.075734]
[1773574581654,0.06995317,71702.0,71678.0,0.81681]
[1773574581856,0.06995317,71702.0,71678.0,0.656988]
[1773574583699,0.06995317,71702.0,71679.0,0.06975543]
[1773574583868,0.06995317,71702.0,71680.0,0.0014]
[1773574584070,0.00022001,71702.0,71680.0,0.0014]
[1773574584288,0.1231619,71702.0,71680.0,0.0014]
[1773574585422,0.05342865,71702.0,71680.0,0.0014]
[1773574587307,0.05342865,71702.0,71681.0,0.06975349]
[1773574587462,0.12316171,71702.0,71681.0,0.06975349]
[1773574587948,0.06995307,71702.0,71681.0,0.06975349]
[1773574588138,0.05296092,71701.0,71681.0,0.06975349]
[1773574591467,0.1918612,71701.0,71681.0,0.06975349]
[1773574591687,0.05296092,71701.0,71681.0,0.06975349]
[1773574592069,0.05318093,71701.0,71681.0,0.06975349]
[1773574592763,0.19219839,71701.0,71681.0,0.06975349]
[1773574592954,0.05318093,71701.0,71681.0,0.06975349]
[1773574593456,0.00022001,71701.0,71681.0,0.06975349]
[1773574593660,0.00022001,71701.0,71682.0,0.0221229]
[1773574594733,1e-08,71701.0,71682.0,0.0221229]
[1773574594932,1e-08,71701.0,71683.0,0.06975154]
[1773574595092,1e-08,71701.0,71684.0,0.0221229]
[1773574596894,1e-08,71701.0,71685.0,0.06974959]
[1773574597100,1e-08,71701.0,71686.0,0.0235229]
[1773574598319,1e-08,71701.0,71687.0,0.06974765]
[1773574598519,1e-08,71701.0,71688.0,0.0221229]
[1773574600975,0.0001378,71704.0,71689.0,0.0697457]
[1773574601133,0.0001378,71704.0,71689.0,0.0918686]
[1773574601472,0.0001378,71704.0,71690.0,0.0221229]
[1773574603527,0.0001378,71704.0,71691.0,0.06974376]
[1773574603809,0.0001378,71704.0,71692.0,0.0014]
[1773574605619,0.0001378,71704.0,71693.0,0.06974181]
[1773574606819,0.0001378,71704.0,71693.0,0.01474181]
[1773574608403,0.00035781,71704.0,71693.0,0.01474181]
[1773574610756,0.00022001,71704.0,71693.0,0.01474181]
[1773574613642,0.02331544,71703.0,71693.0,0.0014]
[1773574613840,0.02331544,71703.0,71692.0,0.05016532]
[1773574615235,0.02299898,71703.0,71692.0,0.05016532]
[1773574615754,0.09273167,71703.0,71692.0,0.05016532]
[1773574618177,0.09273167,71703.0,71692.0,0.06974185]
[1773574618595,0.06973269,71703.0,71692.0,0.06974185]
[1773574620706,0.06973269,71703.0,71690.0,0.0014]
[1773574623049,0.06973269,71703.0,71693.0,0.06974181]
[1773574625376,0.06986155,71703.0,71693.0,0.06974181]
[1773574625771,0.00012886,71703.0,71693.0,0.06974181]
[1773574626614,0.00022001,71707.0,71693.0,0.06974181]
[1773574626615,0.00022001,71707.0,71694.0,0.07274404]
[1773574626790,0.00027001,71709.0,71694.0,0.07274404]
[1773574627394,0.00027001,71709.0,71696.0,0.07274404]
[1773574627695,0.06999636,71709.0,71697.0,0.07414404]
[1773574631688,0.06999636,71709.0,71698.0,0.06973695]
[1773574632418,0.06999636,71709.0,71698.0,0.14248099]
[1773574636038,0.06999636,71709.0,71698.0,0.06973695]
[1773574638255,0.06999636,71709.0,71694.0,0.06974084]
[1773574638555,0.06999636,71709.0,71696.0,0.0014]
[1773574641667,0.06999636,71709.0,71697.0,0.06973792]
[1773574647583,0.06999636,71709.0,71697.0,0.06993792]
[1773574648982,0.06999636,71709.0,71697.0,0.06998282]
[1773574651813,0.06999636,71709.0,71693.0,0.0002]
[1773574651971,0.07005119,71709.0,71693.0,0.0002]
[1773574665821,0.07005119,71709.0,71692.0,0.0002]
[1773574668263,0.07105119,71709.0,71692.0,0.0002]
[1773574668388,0.20885464,71709.0,71692.0,0.0002]
[1773574668588,0.13880345,71708.0,71692.0,0.0002]
[1773574668789,0.06972819,71707.0,71692.0,0.0002]
[1773574668990,0.0014,71706.0,71692.0,0.0002]
[1773574671059,0.06973014,71705.0,71692.0,0.0002]
[1773574671461,0.20853359,71705.0,71692.0,0.0002]
[1773574672790,0.20953359,71705.0,71692.0,0.0002]
[1773574675734,0.13884708,71704.0,71692.0,0.0002]
[1773574675981,0.20957722,71705.0,71692.0,0.0002]
[1773574677187,0.20857722,71705.0,71692.0,0.0002]
[1773574678008,0.20957722,71705.0,71692.0,0.0002]
[1773574678341,0.20857722,71705.0,71692.0,0.0002]
[1773574678712,0.20957722,71705.0,71692.0,0.0002]
[1773574678908,0.20857722,71705.0,71692.0,0.0002]
[1773574679274,0.20957722,71705.0,71692.0,0.0002]
[1773574680728,0.20857722,71705.0,71692.0,0.0002]
[1773574681285,0.20957722,71705.0,71692.0,0.0002]
[1773574681786,0.13884708,71704.0,71692.0,0.0002]
[1773574682186,0.20857722,71705.0,71690.0,0.0002]
[1773574682696,0.20957722,71705.0,71690.0,0.0002]
[1773574684282,0.20857722,71705.0,71690.0,0.0002]
[1773574684537,0.13884708,71704.0,71690.0,0.0002]
[1773574684853,0.06973306,71702.0,71690.0,0.0002]
[1773574685049,0.13884708,71701.0,71690.0,0.0002]
[1773574685228,0.0014,71700.0,71690.0,0.0002]
[1773574687157,0.06973597,71699.0,71685.0,0.09463001]
[1773574687321,0.20858305,71699.0,71685.0,0.09463001]
[1773574687519,0.13884708,71698.0,71685.0,0.09463001]
[1773574687719,0.20858305,71699.0,71685.0,0.09463001]
[1773574697392,0.20858305,71699.0,71684.0,0.0002]
[1773574699026,0.20858305,71699.0,71680.0,0.09543001]
[1773574699027,0.20858305,71699.0,71679.0,0.09543001]
[1773574699028,0.0014,71698.0,71679.0,0.09543001]
[1773574699229,0.0014,71697.0,71679.0,0.09543001]
[1773574699617,0.06973889,71696.0,71679.0,0.09543001]
[1773574700186,0.20858597,71696.0,71679.0,0.09543001]
[1773574703653,0.20858597,71696.0,71678.0,0.0002]
[1773574704255,0.20858597,71696.0,71677.0,0.00227038]
[1773574704256,0.13884708,71695.0,71677.0,0.00227038]
[1773574704467,0.13884708,71695.0,71676.0,0.0002]
[1773574705419,0.20858597,71696.0,71676.0,0.0002]
[1773574709667,0.21073184,71696.0,71676.0,0.0002]
[1773574710284,0.20858597,71696.0,71676.0,0.0002]
[1773574710484,0.00214587,71695.0,71676.0,0.0002]
[1773574711496,0.06974084,71694.0,71676.0,0.0002]
[1773574711870,0.00203147,71693.0,71675.0,0.0001276]
[1773574712874,0.00203147,71693.0,71675.0,0.02189549]
[1773574713294,0.20858792,71694.0,71675.0,0.02189549]
[1773574713519,0.13884708,71693.0,71675.0,0.02189549]
[1773574713719,0.06974084,71694.0,71675.0,0.02189549]
[1773574715145,0.00186307,71693.0,71675.0,0.02189549]
[1773574716000,0.06974278,71692.0,71675.0,0.02189549]
[1773574716201,0.0014,71691.0,71675.0,0.02189549]
[1773574717552,0.0014,71691.0,71675.0,0.02209549]
[1773574718329,0.06974473,71690.0,71675.0,0.02209549]
[1773574718801,0.20859181,71690.0,71675.0,0.02209549]
[1773574726272,0.13874865,71689.0,71675.0,0.02209549]
[1773574726471,0.20849338,71690.0,71675.0,0.02209549]
[1773574730232,0.13874865,71689.0,71675.0,0.02209549]
[1773574732238,0.06974765,71687.0,71675.0,0.02209549]
[1773574733241,0.2084963,71687.0,71675.0,0.02209549]
[1773574733544,0.06982239,71687.0,71676.0,0.02049968]
[1773574733740,0.0014,71686.0,71676.0,0.02049968]
[1773574733919,0.06982239,71687.0,71676.0,0.02049968]
[1773574733920,0.0014,71685.0,71676.0,0.02049968]
[1773574734321,0.06975057,71684.0,71676.0,0.02049968]
[1773574734646,0.07115057,71684.0,71676.0,0.02049968]
[1773574735626,0.07115057,71684.0,71675.0,0.0003276]
[1773574743807,0.07215057,71684.0,71675.0,0.0003276]
[1773574744158,0.07115057,71684.0,71675.0,0.0003276]
[1773574745967,0.21009824,71684.0,71675.0,0.0003276]
[1773574751026,0.06404964,71683.0,71675.0,0.0003276]
[1773574751972,0.06404964,71683.0,71675.0,1e-08]
[1773574752607,0.06975251,71682.0,71675.0,1e-08]
[1773574752990,0.20870018,71682.0,71675.0,1e-08]
[1773574759349,0.13896428,71681.0,71675.0,1e-08]
[1773574759590,0.06393312,71681.0,71675.0,1e-08]
[1773574760294,0.20871679,71682.0,71675.0,1e-08]
[1773574760416,0.13896428,71681.0,71675.0,1e-08]
[1773574760616,0.06975251,71682.0,71675.0,1e-08]
[1773574766294,0.06975251,71682.0,71665.0,0.04221431]
[1773574766593,0.06975251,71682.0,71670.0,5e-05]
[1773574766973,0.06975251,71682.0,71667.0,0.06976517]
[1773574768818,0.06975251,71682.0,71665.0,0.0014]
[1773574774141,0.06975251,71682.0,71665.0,0.06976809]
[1773574774142,0.06252592,71681.0,71665.0,0.06976809]
[1773574776343,0.06975446,71680.0,71665.0,0.06976809]
[1773574776747,0.20871699,71680.0,71665.0,0.06996809]
[1773574778442,0.27099638,71680.0,71665.0,0.06996809]
[1773574781177,0.06223617,71679.0,71665.0,0.06996809]
[1773574781385,0.0014,71678.0,71665.0,0.06996809]
[1773574783936,0.06975738,71677.0,71665.0,0.06996809]
[1773574790363,0.06975738,71677.0,71665.0,0.0002]
[1773574790535,0.11821251,71677.0,71665.0,0.0002]
[1773574791133,0.04845513,71676.0,71665.0,0.0002]
[1773574792559,0.04845513,71676.0,71665.0,0.06996872]
[1773574792738,0.06975933,71675.0,71665.0,0.06996872]
[1773574793091,0.06975933,71675.0,71665.0,0.0002]
[1773574795082,0.06975933,71676.0,71665.0,0.0002]
[1773574795300,0.05516341,71675.0,71665.0,0.0002]
[1773574797939,0.0697603,71674.0,71665.0,0.0002]
[1773574798097,0.06148498,71673.0,71661.0,0.0002]
[1773574799434,0.0014,71672.0,71661.0,0.0002]
[1773574799620,0.06288498,71672.0,71661.0,0.0002]
[1773574800011,0.06976322,71671.0,71661.0,0.0002]
[1773574801432,0.06976322,71671.0,71661.0,0.06997261]
[1773574801631,0.0014,71674.0,71661.0,0.06997261]
[1773574802044,0.07115933,71677.0,71661.0,0.06997261]
[1773574802243,0.06975933,71677.0,71661.0,0.06997261]
[1773574802447,0.07115933,71677.0,71661.0,0.06997261]
[1773574802760,0.06975933,71677.0,71661.0,0.06997261]
[1773574802988,0.06975641,71678.0,71661.0,0.06997261]
[1773574803375,0.00022001,71677.0,71661.0,0.06997261]
[1773574804659,0.06975835,71676.0,71661.0,0.06997261]
[1773574810451,0.06997745,71677.0,71661.0,0.06997261]
[1773574810700,0.06997745,71677.0,71662.0,0.0014]
[1773574812073,0.06997745,71677.0,71663.0,0.06977101]
[1773574812927,0.00022001,71677.0,71663.0,0.06977101]
[1773574813100,0.06997758,71677.0,71663.0,0.06977101]
[1773574814812,0.06997758,71677.0,71663.0,0.07077101]
[1773574815132,0.06997758,71677.0,71663.0,0.06977101]
[1773574817847,0.06997758,71677.0,71663.0,0.06977101]
[1773574820990,0.0606781,71676.0,71663.0,0.06977101]
[1773574821331,0.00022001,71677.0,71663.0,0.06977101]
[1773574823778,0.06997791,71677.0,71663.0,0.06977101]
[1773574836848,0.13055339,71677.0,71663.0,0.06977101]
[1773574842593,0.06600112,71676.0,71663.0,0.06977101]
[1773574845725,0.1357597,71676.0,71663.0,0.06977101]
[1773574848827,0.06975858,71676.0,71663.0,0.06977101]
[1773574849034,0.01748967,71675.0,71663.0,0.06977101]
[1773574856362,0.01770968,71675.0,71663.0,0.06977101]
[1773574861317,0.01558464,71673.0,71663.0,0.06977101]
[1773574861497,0.01558464,71673.0,71664.0,0.0014]
[1773574862217,0.01558464,71673.0,71665.0,0.0014]
[1773574867245,0.01558464,71672.0,71662.0,0.06997146]
[1773574869142,0.06976322,71671.0,71662.0,0.06997146]
[1773574869354,0.08534786,71671.0,71662.0,0.06997146]
[1773574869908,0.01558464,71670.0,71662.0,0.06997146]
[1773574871279,0.01558464,71668.0,71661.0,0.0002]
[1773574871435,0.01558464,71668.0,71659.0,0.06997435]
[1773574872502,0.01558464,71668.0,71659.0,0.0002]
[1773574873262,0.06976711,71667.0,71659.0,0.0002]
[1773574874451,0.06976711,71667.0,71659.0,0.0012]
[1773574877661,0.06976711,71667.0,71659.0,0.07097484]
[1773574877862,0.08579444,71667.0,71659.0,0.07097484]
[1773574878698,0.08579444,71667.0,71659.0,0.0012]
[1773574879317,0.00162001,71673.0,71659.0,0.07097464]
[1773574879494,0.07138138,71673.0,71659.0,0.07097464]
[1773574879881,0.06998138,71673.0,71659.0,0.07097464]
[1773574880082,0.06998138,71673.0,71659.0,0.06997464]
[1773574880604,0.06998138,71673.0,71659.0,0.07097464]
[1773574880789,0.06998138,71673.0,71659.0,0.06997464]
[1773574881009,0.06998138,71673.0,71659.0,0.07097464]
[1773574881389,0.06998138,71673.0,71659.0,0.06997464]
[1773574882724,0.01986011,71672.0,71659.0,0.06997464]
[1773574889257,0.08962322,71672.0,71659.0,0.06997464]
[1773574890854,0.01982553,71671.0,71659.0,0.06997464]
[1773574891352,0.06976419,71670.0,71659.0,0.06997464]
[1773574891557,0.01982553,71669.0,71659.0,0.06997464]
[1773574893284,0.06976289,71672.0,71659.0,0.06997464]
[1773574893626,0.06976289,71672.0,71660.0,0.0157384]
[1773574896994,0.06976289,71672.0,71661.0,0.06977295]
[1773574900096,0.06976289,71672.0,71660.0,0.06977302]
[1773574900297,0.01433936,71671.0,71660.0,0.06977302]
[1773574901926,0.06976419,71670.0,71660.0,0.06977302]
[1773574902435,0.06976419,71670.0,71660.0,0.07077302]
[1773574902641,0.01433936,71669.0,71659.0,0.06997469]
[1773574903614,0.01573936,71669.0,71659.0,0.06997469]
[1773574905468,0.06976614,71668.0,71660.0,0.0002]